bitfinex-derivatives/quotes_BTCF0:USTF0_20260131
["timestamp","ask_amount","ask_price","bid_price","bid_amount"]
[1769838361044,8.405e-05,84038.0,84008.0,0.011923]
[1769838361237,0.11286294,84037.0,84008.0,0.011923]
[1769838361437,0.11286294,84036.0,84008.0,0.011923]
[1769838361645,0.11286294,84035.0,84008.0,0.011923]
[1769838361851,0.11286294,84034.0,84008.0,0.011923]
[1769838362144,0.11286294,84033.0,84008.0,0.011923]
[1769838362339,0.11286294,84032.0,84008.0,0.011923]
[1769838362539,0.11286294,84031.0,84008.0,0.011923]
[1769838362740,0.011919,84036.0,84008.0,0.011923]
[1769838363045,0.11293223,84035.0,84008.0,0.011923]
[1769838363246,0.11293223,84034.0,84008.0,0.011923]
[1769838363552,0.1129325,84033.0,84008.0,0.011923]
[1769838363844,0.1129325,84032.0,84008.0,0.011923]
[1769838364046,0.1129325,84031.0,84008.0,0.011923]
[1769838364247,0.011919,84036.0,84008.0,0.011923]
[1769838364445,0.11296552,84035.0,84008.0,0.011923]
[1769838364646,0.11296552,84034.0,84008.0,0.011923]
[1769838364849,0.11296552,84033.0,84008.0,0.011923]
[1769838365036,0.11296552,84032.0,84008.0,0.011923]
[1769838365335,0.11296552,84031.0,84008.0,0.011923]
[1769838365539,0.011919,84036.0,84008.0,0.011923]
[1769838365749,0.11297143,84035.0,84008.0,0.011923]
[1769838365940,0.11297143,84034.0,84008.0,0.011923]
[1769838366146,0.11297143,84033.0,84008.0,0.011923]
[1769838366344,0.11297143,84032.0,84008.0,0.011923]
[1769838366544,0.11297143,84031.0,84008.0,0.011923]
[1769838366744,0.11297143,84030.0,84008.0,0.011923]
[1769838366944,0.011919,84036.0,84008.0,0.011923]
[1769838367145,0.11297188,84035.0,84008.0,0.011923]
[1769838367346,0.11297188,84034.0,84008.0,0.011923]
[1769838367545,0.11297188,84033.0,84008.0,0.011923]
[1769838367844,0.11297188,84032.0,84008.0,0.011923]
[1769838368049,0.11297188,84031.0,84008.0,0.011923]
[1769838368256,0.011919,84036.0,84008.0,0.011923]
[1769838368442,0.1129728,84035.0,84008.0,0.011923]
[1769838368752,0.1129728,84034.0,84008.0,0.011923]
[1769838368952,0.1129728,84033.0,84008.0,0.011923]
[1769838369143,0.1129728,84032.0,84008.0,0.011923]
[1769838369344,0.1129728,84031.0,84008.0,0.011923]
[1769838369552,0.011919,84036.0,84008.0,0.011923]
[1769838369747,0.11297333,84035.0,84008.0,0.011923]
[1769838369944,0.11297333,84034.0,84008.0,0.011923]
[1769838370143,0.011919,84036.0,84008.0,0.011923]
[1769838370144,0.11297333,84033.0,84008.0,0.011923]
[1769838370344,0.11297333,84032.0,84008.0,0.011923]
[1769838370545,0.11297333,84031.0,84008.0,0.011923]
[1769838370745,0.011919,84034.0,84008.0,0.011923]
[1769838370950,0.11297687,84033.0,84008.0,0.011923]
[1769838373455,8.405e-05,84038.0,84020.0,0.20130299]
[1769838373655,0.011918,84041.0,84020.0,0.10724]
[1769838374555,8.357e-05,84040.0,84020.0,0.25022219]
[1769838375144,8.357e-05,84040.0,84020.0,0.10724]
[1769838382760,0.011918,84039.0,84020.0,0.10724]
[1769838388165,8.357e-05,84040.0,84020.0,0.10724]
[1769838388359,8.357e-05,84040.0,84020.0,0.25022219]
[1769838388555,8.357e-05,84040.0,84022.0,0.14298219]
[1769838390067,8.357e-05,84040.0,84021.0,0.14298219]
[1769838392270,8.357e-05,84040.0,84023.0,0.14298219]
[1769838396875,8.357e-05,84040.0,84024.0,0.10724]
[1769838402277,8.357e-05,84040.0,84024.0,0.25022219]
[1769838416285,8.357e-05,84040.0,84025.0,0.14298219]
[1769838416682,8.357e-05,84040.0,84024.0,0.25022219]
[1769838417189,8.357e-05,84040.0,84025.0,0.14298219]
[1769838424999,8.357e-05,84040.0,84026.0,0.14298219]
[1769838426706,8.357e-05,84040.0,84025.0,0.14298219]
[1769838431911,8.357e-05,84040.0,84026.0,0.14298219]
[1769838432415,8.357e-05,84040.0,84024.0,0.25022219]
[1769838433916,8.357e-05,84040.0,84026.0,0.14298219]
[1769838434214,8.357e-05,84040.0,84025.0,0.14298219]
[1769838435114,8.357e-05,84040.0,84026.0,0.10724]
[1769838442121,0.011916,84055.0,84028.0,0.01192]
[1769838442325,0.10724,84056.0,84032.0,0.14298219]
[1769838442620,0.10724,84056.0,84036.0,0.14298219]
[1769838443220,7.33e-05,84055.0,84035.0,0.14298219]
[1769838443621,7.33e-05,84055.0,84034.0,0.14298219]
[1769838444722,0.0119893,84055.0,84033.0,0.14298219]
[1769838447112,0.0119893,84055.0,84032.0,0.14298219]
[1769838452222,0.0119893,84055.0,84033.0,0.14298219]
[1769838453119,0.0119893,84055.0,84034.0,0.10724]
[1769838467333,0.0119893,84055.0,84034.0,0.25022219]
[1769838470242,0.0119893,84055.0,84035.0,0.14298219]
[1769838472142,0.0119893,84055.0,84037.0,0.14298219]
[1769838472337,0.0119893,84055.0,84034.0,0.10724]
[1769838472338,0.0119893,84055.0,84036.0,0.10724]
[1769838474242,7.33e-05,84055.0,84036.0,0.10724]
[1769838480147,7.33e-05,84055.0,84035.0,0.14298219]
[1769838480447,0.10724,84058.0,84038.0,0.14298219]
[1769838480645,0.011914,84067.0,84041.0,0.14298219]
[1769838480840,0.04084065,84062.0,84042.0,0.14298219]
[1769838481146,0.04084065,84056.0,84035.0,0.14298219]
[1769838481345,0.04084065,84056.0,84036.0,0.10724]
[1769838481747,0.10724,84070.0,84036.0,0.10724]
[1769838481748,0.04080036,84054.0,84036.0,0.10724]
[1769838481951,0.011916,84053.0,84036.0,0.10724]
[1769838482550,0.04080036,84052.0,84036.0,0.10724]
[1769838482852,0.04080036,84050.0,84034.0,0.10724]
[1769838483546,0.2420634,84050.0,84034.0,0.10724]
[1769838483951,0.04080036,84050.0,84035.0,0.14298219]
[1769838485453,0.04080036,84050.0,84034.0,0.25022219]
[1769838486553,0.04080036,84050.0,84035.0,0.14298219]
[1769838486855,0.03580036,84050.0,84035.0,0.14298219]
[1769838487347,0.03580036,84050.0,84034.0,0.25022219]
[1769838489357,0.011917,84051.0,84034.0,0.25022219]
[1769838492259,0.011917,84051.0,84035.0,0.14298219]
[1769838499772,0.011917,84049.0,84035.0,0.14298219]
[1769838500262,0.011917,84049.0,84034.0,0.14298219]
[1769838502468,0.011917,84047.0,84034.0,0.14298219]
[1769838502669,0.011917,84047.0,84033.0,0.25022219]
[1769838503169,0.011917,84050.0,84033.0,0.25022219]
[1769838503558,0.03885571,84054.0,84033.0,0.25022219]
[1769838503559,0.011917,84048.0,84033.0,0.25022219]
[1769838504372,0.011917,84052.0,84033.0,0.25022219]
[1769838504571,0.03885571,84054.0,84034.0,0.14298219]
[1769838504869,0.03871591,84043.0,84021.0,0.17874552]
[1769838505171,0.011918,84039.0,84021.0,0.10724]
[1769838505872,0.03871591,84043.0,84023.0,0.011921]
[1769838506171,0.011918,84042.0,84024.0,0.10724]
[1769838506570,0.011918,84040.0,84024.0,0.10724]
[1769838508973,0.21318104,84040.0,84024.0,0.10724]
[1769838510764,0.011919,84038.0,84021.0,0.55004]
[1769838510963,0.011919,84038.0,84022.0,0.10724]
[1769838516574,0.20126304,84040.0,84022.0,0.10724]
[1769838516775,0.011918,84039.0,84022.0,0.10724]
[1769838522779,0.20126304,84040.0,84022.0,0.10724]
[1769838523977,0.011918,84039.0,84022.0,0.10724]
[1769838525787,0.20126304,84040.0,84022.0,0.10724]
[1769838525788,0.21318104,84040.0,84022.0,0.10724]
[1769838525978,0.011919,84035.0,84022.0,0.10724]
[1769838526172,0.011919,84038.0,84022.0,0.10724]
[1769838526586,0.03861989,84039.0,84022.0,0.10724]
[1769838526973,0.20126304,84040.0,84022.0,0.10724]
[1769838527577,0.21318104,84040.0,84022.0,0.10724]
[1769838532191,0.011919,84038.0,84022.0,0.10724]
[1769838533786,0.011918,84044.0,84022.0,0.10724]
[1769838533978,0.10224,84045.0,84024.0,0.17874552]
[1769838534491,0.10775422,84044.0,84024.0,0.17874552]
[1769838534793,0.10224,84045.0,84024.0,0.17874552]
[1769838535091,0.10779029,84044.0,84024.0,0.17874552]
[1769838535285,0.10779029,84043.0,84024.0,0.17874552]
[1769838535477,0.114158,84045.0,84024.0,0.17874552]
[1769838535682,0.10778758,84044.0,84024.0,0.17874552]
[1769838535885,0.10778758,84043.0,84024.0,0.17874552]
[1769838536079,0.114158,84045.0,84024.0,0.17874552]
[1769838536283,0.114158,84045.0,84023.0,0.17874552]
[1769838536492,0.114158,84045.0,84024.0,0.17874552]
[1769838536695,0.109158,84045.0,84023.0,0.17874552]
[1769838536992,0.109158,84045.0,84024.0,0.17874552]
[1769838537297,0.109158,84045.0,84023.0,0.17874552]
[1769838537895,0.104158,84045.0,84023.0,0.17874552]
[1769838539496,0.099158,84045.0,84023.0,0.17874552]
[1769838545194,0.011918,84045.0,84023.0,0.17874552]
[1769838545391,0.011917,84049.0,84023.0,0.19066652]
[1769838545591,0.011917,84047.0,84023.0,0.19066652]
[1769838545789,0.006917,84047.0,84023.0,0.19066652]
[1769838547593,0.006917,84047.0,84023.0,0.17874552]
[1769838547998,0.10753477,84046.0,84023.0,0.17874552]
[1769838548198,0.10753477,84045.0,84023.0,0.17874552]
[1769838548499,0.10753477,84044.0,84023.0,0.17874552]
[1769838548798,0.10753477,84043.0,84023.0,0.17874552]
[1769838548998,0.006917,84047.0,84023.0,0.17874552]
[1769838549198,0.10753425,84046.0,84023.0,0.17874552]
[1769838549395,0.03871107,84044.0,84023.0,0.17874552]
[1769838549590,0.03871107,84038.0,84024.0,0.10724]
[1769838549797,0.03371107,84038.0,84024.0,0.10724]
[1769838550794,0.02871107,84038.0,84024.0,0.10724]
[1769838551602,0.02371107,84038.0,84024.0,0.10724]
[1769838554604,0.01871107,84038.0,84024.0,0.10724]
[1769838556206,0.01371107,84038.0,84024.0,0.10724]
[1769838556404,0.011918,84042.0,84024.0,0.10724]
[1769838556605,0.10720017,84041.0,84024.0,0.10724]
[1769838556805,0.011918,84042.0,84024.0,0.10724]
[1769838557106,0.10720017,84041.0,84024.0,0.10724]
[1769838557306,0.011918,84042.0,84024.0,0.10724]
[1769838557505,0.10719991,84041.0,84024.0,0.10724]
[1769838557706,0.011918,84042.0,84024.0,0.10724]
[1769838557904,0.10719991,84041.0,84024.0,0.10724]
[1769838558105,0.011918,84042.0,84024.0,0.10724]
[1769838558304,0.10720018,84041.0,84024.0,0.10724]
[1769838558506,0.04251318,84042.0,84024.0,0.10724]
[1769838558805,0.10720052,84041.0,84024.0,0.10724]
[1769838559106,0.04251318,84042.0,84024.0,0.10724]
[1769838559301,0.10720075,84041.0,84024.0,0.10724]
[1769838559502,0.04251318,84042.0,84024.0,0.10724]
[1769838559701,0.10720132,84041.0,84024.0,0.10724]
[1769838559901,0.04251318,84042.0,84024.0,0.10724]
[1769838560102,0.10720132,84041.0,84024.0,0.10724]
[1769838560401,0.04251318,84042.0,84024.0,0.10724]
[1769838560597,0.10720157,84041.0,84024.0,0.10724]
[1769838560798,0.04251318,84042.0,84024.0,0.10724]
[1769838561001,0.10720157,84041.0,84024.0,0.10724]
[1769838561297,0.04251318,84042.0,84024.0,0.10724]
[1769838561499,0.10720179,84041.0,84024.0,0.10724]
[1769838561702,0.04251318,84042.0,84024.0,0.10724]
[1769838561910,0.10720179,84041.0,84024.0,0.10724]
[1769838562207,0.04251318,84042.0,84024.0,0.10724]
[1769838562407,0.10720175,84041.0,84024.0,0.10724]
[1769838562608,0.04251318,84042.0,84024.0,0.10724]
[1769838562911,0.10720169,84041.0,84024.0,0.10724]
[1769838563108,0.04249214,84042.0,84024.0,0.10724]
[1769838563310,0.10720195,84041.0,84024.0,0.10724]
[1769838563510,0.04249214,84042.0,84024.0,0.10724]
[1769838563706,0.10720381,84041.0,84024.0,0.10724]
[1769838563911,0.011917,84050.0,84024.0,0.28598552]
[1769838564106,0.10718808,84049.0,84028.0,0.17874552]
[1769838564305,0.011917,84050.0,84024.0,0.10724]
[1769838564306,0.10718808,84048.0,84027.0,0.17874552]
[1769838564610,0.011917,84050.0,84027.0,0.17874552]
[1769838564810,0.10717877,84049.0,84027.0,0.17874552]
[1769838565012,0.10717877,84048.0,84027.0,0.17874552]
[1769838565208,0.011917,84050.0,84027.0,0.17874552]
[1769838565410,0.1071691,84049.0,84027.0,0.17874552]
[1769838565610,0.1071691,84048.0,84027.0,0.17874552]
[1769838565813,0.011917,84050.0,84027.0,0.17874552]
[1769838566012,0.1071682,84049.0,84027.0,0.17874552]
[1769838566212,0.1071682,84048.0,84027.0,0.17874552]
[1769838566413,0.011917,84050.0,84027.0,0.17874552]
[1769838566613,0.10715952,84049.0,84027.0,0.17874552]
[1769838566911,0.10715952,84048.0,84027.0,0.17874552]
[1769838567111,0.011917,84050.0,84027.0,0.17874552]
[1769838567414,0.10715343,84049.0,84026.0,0.17874552]
[1769838567615,0.10715343,84048.0,84026.0,0.17874552]
[1769838567804,0.011917,84050.0,84026.0,0.17874552]
[1769838568107,0.10715208,84049.0,84026.0,0.17874552]
[1769838568308,0.10715208,84048.0,84026.0,0.17874552]
[1769838568513,0.011917,84050.0,84026.0,0.17874552]
[1769838568713,0.1071456,84049.0,84026.0,0.17874552]
[1769838568913,0.1071456,84048.0,84026.0,0.17874552]
[1769838569114,0.011917,84050.0,84026.0,0.17874552]
[1769838569315,0.10714152,84049.0,84026.0,0.17874552]
[1769838569518,0.011917,84050.0,84027.0,0.17874552]
[1769838569818,0.10713919,84049.0,84027.0,0.17874552]
[1769838570018,0.011917,84050.0,84027.0,0.17874552]
[1769838570317,0.10713437,84049.0,84027.0,0.17874552]
[1769838570618,0.011917,84050.0,84027.0,0.17874552]
[1769838570918,0.10713437,84049.0,84027.0,0.17874552]
[1769838571110,0.011917,84050.0,84027.0,0.17874552]
[1769838571317,0.10712867,84049.0,84027.0,0.17874552]
[1769838571518,0.011917,84050.0,84027.0,0.17874552]
[1769838571710,0.10712867,84049.0,84027.0,0.17874552]
[1769838571910,0.011917,84050.0,84027.0,0.17874552]
[1769838572213,0.10712867,84049.0,84026.0,0.17874552]
[1769838572415,0.10712361,84048.0,84025.0,0.17874552]
[1769838572610,0.011917,84050.0,84025.0,0.17874552]
[1769838572810,0.10712361,84049.0,84025.0,0.17874552]
[1769838573011,0.10712361,84048.0,84025.0,0.17874552]
[1769838573212,0.011917,84050.0,84025.0,0.17874552]
[1769838573412,0.10711912,84049.0,84025.0,0.17874552]
[1769838573611,0.10711912,84048.0,84025.0,0.17874552]
[1769838573813,0.011917,84050.0,84025.0,0.17874552]
[1769838574013,0.10711912,84049.0,84025.0,0.17874552]
[1769838574212,0.10711912,84048.0,84025.0,0.17874552]
[1769838574413,0.011917,84050.0,84025.0,0.17874552]
[1769838574613,0.10711514,84049.0,84025.0,0.17874552]
[1769838574817,0.10711514,84048.0,84025.0,0.17874552]
[1769838575017,0.011917,84050.0,84025.0,0.17874552]
[1769838575218,0.10711355,84049.0,84025.0,0.17874552]
[1769838575414,0.10711355,84048.0,84025.0,0.17874552]
[1769838575615,0.011917,84050.0,84025.0,0.17874552]
[1769838575817,0.10711159,84049.0,84025.0,0.17874552]
[1769838576018,0.10711159,84048.0,84025.0,0.17874552]
[1769838576218,0.011917,84050.0,84024.0,0.28598552]
[1769838576517,0.10710843,84049.0,84024.0,0.28598552]
[1769838576719,0.10710843,84048.0,84024.0,0.28598552]
[1769838576916,0.011917,84050.0,84024.0,0.28598552]
[1769838577116,0.10710843,84049.0,84024.0,0.28598552]
[1769838577316,0.10710843,84048.0,84024.0,0.28598552]
[1769838577517,0.011917,84050.0,84024.0,0.28598552]
[1769838577714,0.10710565,84049.0,84024.0,0.28598552]
[1769838577913,0.10710565,84048.0,84024.0,0.28598552]
[1769838578114,0.011917,84050.0,84024.0,0.28598552]
[1769838578312,0.10710325,84049.0,84024.0,0.28598552]
[1769838578614,0.10710325,84048.0,84024.0,0.28598552]
[1769838578812,0.011917,84050.0,84024.0,0.28598552]
[1769838579015,0.10710325,84049.0,84024.0,0.28598552]
[1769838579216,0.10710325,84048.0,84024.0,0.28598552]
[1769838579417,0.011917,84050.0,84024.0,0.28598552]
[1769838579618,0.1071012,84049.0,84024.0,0.28598552]
[1769838579819,0.1071012,84048.0,84024.0,0.28598552]
[1769838580018,0.011917,84050.0,84024.0,0.28598552]
[1769838580219,0.10710175,84049.0,84024.0,0.28598552]
[1769838580423,0.10710175,84048.0,84024.0,0.28598552]
[1769838580721,0.011917,84050.0,84024.0,0.28598552]
[1769838580915,0.10710175,84049.0,84024.0,0.28598552]
[1769838581122,0.10710175,84048.0,84024.0,0.28598552]
[1769838581310,0.011917,84050.0,84024.0,0.28598552]
[1769838581514,0.10710265,84049.0,84024.0,0.28598552]
[1769838581721,0.10710265,84048.0,84024.0,0.28598552]
[1769838581921,0.011917,84050.0,84024.0,0.28598552]
[1769838582220,0.10710265,84049.0,84024.0,0.28598552]
[1769838582422,0.011917,84050.0,84026.0,0.17874552]
[1769838584019,0.0305949,84047.0,84026.0,0.17874552]
[1769838584326,0.011918,84045.0,84027.0,0.10724]
[1769838586624,0.03064268,84044.0,84024.0,0.17874552]
[1769838586824,0.03064268,84040.0,84023.0,0.17874552]
[1769838587125,0.03064268,84040.0,84024.0,0.10724]
[1769838587526,0.10724,84055.0,84024.0,0.10724]
[1769838587527,0.03064268,84038.0,84024.0,0.10724]
[1769838588229,0.03065581,84046.0,84024.0,0.10724]
[1769838590129,0.03060334,84044.0,84024.0,0.10724]
[1769838592232,0.03060334,84044.0,84024.0,0.28598552]
[1769838594833,0.03060334,84044.0,84024.0,0.10724]
[1769838595327,0.011918,84040.0,84024.0,0.10724]
[1769838596733,0.03059512,84043.0,84024.0,0.10724]
[1769838599234,0.03059634,84047.0,84025.0,0.17874552]
[1769838599433,0.10695724,84046.0,84024.0,0.28598552]
[1769838599638,0.03059634,84047.0,84025.0,0.17874552]
[1769838599839,0.13754832,84046.0,84025.0,0.17874552]
[1769838600032,0.03059218,84046.0,84025.0,0.17874552]
[1769838600838,0.03059218,84046.0,84024.0,0.28598552]
[1769838601239,0.10724,84048.0,84024.0,0.28598552]
[1769838601442,0.10695719,84047.0,84025.0,0.17874552]
[1769838601640,0.10695719,84046.0,84025.0,0.17874552]
[1769838601940,0.10724,84048.0,84025.0,0.17874552]
[1769838602131,0.10695806,84047.0,84025.0,0.17874552]
[1769838602336,0.10695806,84046.0,84025.0,0.17874552]
[1769838602539,0.10724,84048.0,84025.0,0.17874552]
[1769838602741,0.10695952,84047.0,84025.0,0.19066552]
[1769838602939,0.10724,84048.0,84027.0,0.17874552]
[1769838603243,0.10724,84048.0,84028.0,0.01192]
[1769838603846,0.011916,84055.0,84028.0,0.01192]
[1769838604039,0.10695124,84054.0,84027.0,0.17874552]
[1769838604238,0.10695124,84053.0,84028.0,0.17874552]
[1769838604440,0.10695124,84052.0,84028.0,0.17874552]
[1769838604740,0.011916,84055.0,84028.0,0.17874552]
[1769838604741,0.10695124,84051.0,84028.0,0.17874552]
[1769838604942,0.10695124,84050.0,84029.0,0.01192]
[1769838605143,0.04242841,84056.0,84029.0,0.17874552]
[1769838605343,0.10694755,84055.0,84028.0,0.19066552]
[1769838605641,0.10694755,84054.0,84030.0,0.20120145]
[1769838605852,0.10694755,84053.0,84030.0,0.20120145]
[1769838606052,0.10694755,84052.0,84030.0,0.20120145]
[1769838606253,0.10694755,84051.0,84030.0,0.20120145]
[1769838606455,0.10694755,84050.0,84030.0,0.20120145]
[1769838606642,0.04242841,84056.0,84030.0,0.20120145]
[1769838606643,0.03050041,84055.0,84030.0,0.20120145]
[1769838606847,0.10194262,84054.0,84030.0,0.20120145]
[1769838607047,0.03050041,84055.0,84030.0,0.20120145]
[1769838607953,0.02550041,84055.0,84030.0,0.20120145]
[1769838608355,0.011916,84054.0,84030.0,0.20120145]
[1769838609354,0.006916,84054.0,84030.0,0.20120145]
[1769838610261,0.005766,84054.0,84030.0,0.20120145]
[1769838614261,0.011917,84052.0,84030.0,0.20120145]
[1769838614559,0.02884003,84046.0,84024.0,0.10724]
[1769838615060,0.02884003,84046.0,84024.0,0.17375916]
[1769838615258,0.02884003,84044.0,84024.0,0.10724]
[1769838622361,0.02884003,84044.0,84024.0,0.28598552]
[1769838623157,0.02884003,84044.0,84025.0,0.17874552]
[1769838626364,0.02891308,84042.0,84025.0,0.17874552]
[1769838626558,0.02891308,84040.0,84018.0,0.17874552]
[1769838627166,0.13531032,84039.0,84018.0,0.0645836]
[1769838627465,0.02891308,84039.0,84017.0,0.17874552]
[1769838627866,0.04083108,84039.0,84017.0,0.24287101]
[1769838628066,0.02896909,84038.0,84017.0,0.24287101]
[1769838628364,0.02896909,84038.0,84018.0,0.66068]
[1769838633278,0.011918,84040.0,84018.0,0.66068]
[1769838635973,0.04074194,84040.0,84018.0,0.66068]
[1769838642279,0.011918,84040.0,84018.0,0.66068]
[1769838644680,0.13603333,84045.0,84019.0,0.011921]
[1769838644681,0.011918,84044.0,84019.0,0.011921]
[1769838644881,0.10640343,84043.0,84019.0,0.011921]
[1769838645180,0.011918,84044.0,84019.0,0.011921]
[1769838645181,0.10640343,84042.0,84019.0,0.011921]
[1769838645372,0.011918,84044.0,84019.0,0.011921]
[1769838645575,0.10640528,84043.0,84019.0,0.19066652]
[1769838645775,0.11832328,84042.0,84019.0,0.011921]
[1769838645980,0.011918,84040.0,84018.0,0.83942552]
[1769838646682,0.011918,84043.0,84018.0,0.83942552]
[1769838646876,0.10640939,84042.0,84018.0,0.83942552]
[1769838647079,0.011918,84043.0,84018.0,0.83942552]
[1769838647279,0.10640939,84042.0,84018.0,0.83942552]
[1769838647480,0.011918,84043.0,84018.0,0.83942552]
[1769838647782,0.10641288,84042.0,84018.0,0.83942552]
[1769838648079,0.011918,84043.0,84019.0,0.10724]
[1769838648282,0.10641288,84042.0,84019.0,0.10724]
[1769838648483,0.011918,84043.0,84019.0,0.10724]
[1769838648784,0.10641678,84042.0,84019.0,0.10724]
[1769838648976,0.011918,84043.0,84019.0,0.10724]
[1769838649173,0.10641678,84042.0,84019.0,0.10724]
[1769838649376,0.011918,84043.0,84019.0,0.28598552]
[1769838649573,0.10642128,84042.0,84019.0,0.28598552]
[1769838649778,0.011918,84043.0,84019.0,0.28598552]
[1769838650077,0.10642128,84042.0,84019.0,0.28598552]
[1769838650277,0.011917,84047.0,84020.0,0.20120145]
[1769838650478,0.02877187,84060.0,84030.0,0.20120145]
[1769838650688,0.1064081,84059.0,84031.0,0.6662]
[1769838650984,0.011916,84057.0,84031.0,0.678119]
[1769838651182,0.1064081,84056.0,84031.0,0.678119]
[1769838651385,0.1064081,84055.0,84031.0,0.678119]
[1769838651685,0.1064081,84054.0,84031.0,0.6662]
[1769838651886,0.011916,84057.0,84031.0,0.6662]
[1769838652184,0.10637795,84056.0,84031.0,0.6662]
[1769838652385,0.11829395,84055.0,84031.0,0.6662]
[1769838652585,0.011916,84053.0,84031.0,0.6662]
[1769838653986,0.011916,84057.0,84031.0,0.6662]
[1769838654189,0.10634489,84056.0,84031.0,0.6662]
[1769838654388,0.10634489,84055.0,84031.0,0.6662]
[1769838654588,0.011916,84057.0,84031.0,0.6662]
[1769838654789,0.10633134,84056.0,84031.0,0.6662]
[1769838654990,0.10633134,84055.0,84031.0,0.6662]
[1769838655285,0.011916,84057.0,84031.0,0.6662]
[1769838655490,0.10631889,84056.0,84031.0,0.6662]
[1769838655690,0.011916,84057.0,84031.0,0.6662]
[1769838655892,0.10631747,84056.0,84031.0,0.6662]
[1769838656092,0.011916,84057.0,84031.0,0.6662]
[1769838656292,0.10631747,84056.0,84031.0,0.6662]
[1769838656492,0.011916,84057.0,84031.0,0.6662]
[1769838656692,0.10630522,84056.0,84031.0,0.6662]
[1769838656890,0.011916,84057.0,84031.0,0.6662]
[1769838657096,0.10630522,84056.0,84031.0,0.6662]
[1769838657395,0.011916,84057.0,84031.0,0.6662]
[1769838657595,0.1062936,84056.0,84031.0,0.6662]
[1769838657794,0.011916,84057.0,84031.0,0.6662]
[1769838657994,0.10629339,84056.0,84031.0,0.6662]
[1769838658194,0.011916,84057.0,84031.0,0.6662]
[1769838658384,0.10629339,84056.0,84031.0,0.6662]
[1769838658585,0.011916,84057.0,84031.0,0.6662]
[1769838658790,0.10628361,84056.0,84031.0,0.6662]
[1769838658989,0.011916,84057.0,84031.0,0.6662]
[1769838659194,0.10628361,84056.0,84031.0,0.6662]
[1769838659396,0.011916,84057.0,84031.0,0.6662]
[1769838659898,0.011916,84055.0,84031.0,0.6662]
[1769838662303,0.10626316,84054.0,84031.0,0.6662]
[1769838662502,0.011916,84055.0,84031.0,0.6662]
[1769838662703,0.10626316,84054.0,84031.0,0.6662]
[1769838663003,0.011916,84055.0,84031.0,0.6662]
[1769838663195,0.10626316,84054.0,84031.0,0.6662]
[1769838663396,0.011916,84055.0,84031.0,0.6662]
[1769838663608,0.10625985,84054.0,84031.0,0.6662]
[1769838663803,0.011916,84055.0,84031.0,0.6662]
[1769838664002,0.10625985,84054.0,84031.0,0.6662]
[1769838664197,0.011916,84055.0,84031.0,0.6662]
[1769838664402,0.10625816,84054.0,84031.0,0.6662]
[1769838664605,0.011916,84055.0,84031.0,0.6662]
[1769838664905,0.10625778,84054.0,84031.0,0.6662]
[1769838665104,0.011916,84055.0,84031.0,0.6662]
[1769838665305,0.10625778,84054.0,84031.0,0.6662]
[1769838665507,0.011916,84055.0,84031.0,0.6662]
[1769838665702,0.10625707,84054.0,84031.0,0.6662]
[1769838665903,0.011916,84055.0,84031.0,0.6662]
[1769838666104,0.10625707,84054.0,84031.0,0.6662]
[1769838666308,0.011916,84055.0,84031.0,0.6662]
[1769838666499,0.10625772,84054.0,84031.0,0.6662]
[1769838666700,0.011916,84055.0,84031.0,0.6662]
[1769838666900,0.10625772,84054.0,84031.0,0.6662]
[1769838667200,0.011916,84055.0,84031.0,0.6662]
[1769838667397,0.10625808,84054.0,84031.0,0.6662]
[1769838667602,0.011916,84055.0,84031.0,0.6662]
[1769838667804,0.1062598,84054.0,84031.0,0.6662]
[1769838668097,0.011916,84055.0,84031.0,0.6662]
[1769838668302,0.1062598,84054.0,84031.0,0.6662]
[1769838668502,0.011916,84055.0,84031.0,0.6662]
[1769838668710,0.10626331,84054.0,84031.0,0.6662]
[1769838668911,0.011916,84055.0,84031.0,0.6662]
[1769838669099,0.10626331,84054.0,84031.0,0.6662]
[1769838669304,0.011916,84055.0,84031.0,0.6662]
[1769838669500,0.10626833,84054.0,84031.0,0.6662]
[1769838669710,0.011916,84055.0,84031.0,0.6662]
[1769838670010,0.10626833,84054.0,84031.0,0.6662]
[1769838670210,0.011916,84055.0,84031.0,0.6662]
[1769838670414,0.10626998,84054.0,84031.0,0.6662]
[1769838670711,0.10626998,84053.0,84031.0,0.6662]
[1769838671011,0.011916,84055.0,84031.0,0.6662]
[1769838671201,0.10627455,84054.0,84031.0,0.6662]
[1769838671404,0.011916,84055.0,84031.0,0.6662]
[1769838671405,0.10627455,84053.0,84031.0,0.6662]
[1769838671602,0.011916,84055.0,84031.0,0.6662]
[1769838671806,0.10628275,84054.0,84031.0,0.6662]
[1769838672106,0.10628275,84053.0,84031.0,0.6662]
[1769838672301,0.011916,84055.0,84031.0,0.6662]
[1769838676113,0.011916,84055.0,84032.0,0.10724]
[1769838676318,0.10616916,84054.0,84032.0,0.10724]
[1769838676514,0.011916,84055.0,84032.0,0.10724]
[1769838676710,0.10616916,84054.0,84032.0,0.10724]
[1769838677014,0.011916,84055.0,84032.0,0.10724]
[1769838677318,0.10616916,84054.0,84032.0,0.10724]
[1769838677523,0.011916,84055.0,84032.0,0.10724]
[1769838677714,0.10618803,84054.0,84032.0,0.10724]
[1769838677902,0.011916,84055.0,84032.0,0.10724]
[1769838678105,0.10618803,84054.0,84032.0,0.10724]
[1769838678316,0.1062121,84053.0,84032.0,0.10724]
[1769838678522,0.011916,84055.0,84032.0,0.10724]
[1769838678709,0.1062121,84054.0,84032.0,0.10724]
[1769838678906,0.011916,84055.0,84032.0,0.10724]
[1769838678907,0.1062121,84053.0,84032.0,0.10724]
[1769838679116,0.011916,84055.0,84032.0,0.10724]
[1769838679309,0.1062121,84054.0,84032.0,0.10724]
[1769838679615,0.1062121,84053.0,84032.0,0.10724]
[1769838679822,0.011916,84055.0,84032.0,0.10724]
[1769838680012,0.10624577,84054.0,84032.0,0.10724]
[1769838680208,0.10624577,84053.0,84032.0,0.10724]
[1769838680405,0.10632094,84052.0,84032.0,0.28598552]
[1769838680613,0.011916,84055.0,84032.0,0.28598552]
[1769838680614,0.10632094,84051.0,84032.0,0.28598552]
[1769838680819,0.011916,84055.0,84032.0,0.28598552]
[1769838681020,0.10632094,84054.0,84033.0,0.10724]
[1769838681218,0.10632094,84053.0,84033.0,0.10724]
[1769838681518,0.10632094,84052.0,84033.0,0.10724]
[1769838681717,0.10632094,84051.0,84033.0,0.10724]
[1769838681917,0.011916,84055.0,84033.0,0.10724]
[1769838682220,0.1063217,84054.0,84033.0,0.10724]